Workbook

Sheet 封面
A4: 张家港市
A6: 2021年财政预算调整情况表

Sheet 一般预算支出
A2: 2021年张家港市一般公共预算支出调整预算表
D3: 单位:万元
A4: 支 出 项 目 | B4: 年初预算 | C4: 调整数 | D4: 调整后预算
A5: 1.一般公共服务支出 | B5: 189,000 | C5: =D5-B5 -> 4,800 | D5: 193,800
A6: 2.国防支出 | B6: 2,200 | C6: =D6-B6 -> 8,800 | D6: 11,000
A7: 3.公共安全支出 | B7: 134,100 | C7: -6,900 | D7: 127,200
A8: 4.教育支出 | B8: 372,800 | C8: 13,200 | D8: 386,000
A9: 5.科学技术支出 | B9: 190,500 | C9: 45,500 | D9: 236,000
A10: 6.文化体育与传媒支出 | B10: 45,600 | C10: 0 | D10: 45,600
A11: 7.社会保障和就业支出 | B11: 223,600 | C11: 22,400 | D11: 246,000
A12: 8.医疗卫生与计划生育支出 | B12: 147,500 | C12: 31,500 | D12: 179,000
A13: 9.节能环保支出 | B13: 105,000 | C13: -16,000 | D13: 89,000
A14: 10.城乡社区支出 | B14: 525,900 | C14: -51,700 | D14: 474,200
A15: 11.农林水支出 | B15: 186,000 | C15: 15,000 | D15: 201,000
A16: 12.交通运输支出 | B16: 72,000 | C16: 22,200 | D16: 94,200
A17: 13.资源勘探信息等支出 | B17: 20,000 | C17: 0 | D17: 20,000
A18: 14.商业服务业等支出 | B18: 8,500 | C18: 2,000 | D18: 10,500
A19: 15.金融支出 | B19: 1,600 | C19: 1,400 | D19: 3,000
A20: 16.援助其他地区支出 | B20: 26,600 | C20: 0 | D20: 26,600
A21: 17.国土海洋气象等支出 | B21: 12,900 | C21: 0 | D21: 12,900
A22: 18.住房保障支出 | B22: 125,600 | C22: 10,400 | D22: 136,000
A23: 19.粮油物资储备支出 | B23: 2,800 | C23: 0 | D23: 2,800
A24: 20.灾害防治及应急管理支出 | B24: 15,800 | C24: 1,200 | D24: 17,000
A25: 21.预备费 | B25: 30,000 | C25: -30,000 | D25: 0
A26: 22.债务付息支出 | B26: 18,800 | C26: 5,200 | D26: 24,000
A27: 23.债务发行费用支出 | B27: 200 | C27: 0 | D27: 200
A28: 24.其他支出 | C28: 0
A29: 本级支出合计 | B29: =SUM(B5:B28) -> 2,457,000 | C29: =SUM(C5:C28) -> 79,000 | D29: =SUM(D5:D28) -> 2,536,000
A30: 地方政府债务还本支出 | C30: 15,000 | D30: 15,000
A31: 支出总计 | C31: =SUM(C29:C30) -> 94,000 | D31: =SUM(D29:D30) -> 2,551,000

Sheet 基金收入
A2: 2021年张家港市政府性基金收入调整预算表
D3: 单位：万元
A4: 收 入 项 目 | B4: 年初预算 | C4: 调整数 | D4: 调整后预算
A5: 1.港口建设费收入 | B5: 6,000 | C5: =D5-B5 -> -5,980 | D5: 20
A6: 2.国有土地使用权出让收入 | B6: 1,425,000 | C6: =D6-B6 -> 226,900 | D6: 1,651,900
A7: 3.国有土地收益基金收入 | B7: 70,000 | C7: =D7-B7 -> 10,000 | D7: 80,000
A8: 4.农业土地开发资金收入 | B8: 5,000 | C8: 0 | D8: 5,000
A9: 5.城市基础设施配套费收入 | B9: 20,000 | C9: 9,880 | D9: 29,880
A10: 6.污水处理费收入 | B10: 18,000 | C10: 0 | D10: 18,000
A11: 7.彩票公益金及彩票发行销售业务费 | D11: 5,200
A12: 本级收入合计 | B12: =SUM(B5:B10) -> 1,544,000 | C12: =SUM(C5:C10) -> 240,800 | D12: =SUM(D5:D11) -> 1,790,000
A13: 地方政府新增专项债券转贷收入 | C13: 83,500 | D13: 83,500
A14: 上级转移支付、上年结转资金 | B14: 70,000 | C14: 64,459 | D14: 64,267
A15: 收入总计 | B15: =B12+B14 -> 1,614,000 | C15: =SUM(C12:C14) -> 388,759 | D15: =SUM(D12:D14) -> 1,937,767

Sheet 基金支出
A2: 2021年张家港市政府性基金支出调整预算表
D3: 单位：万元
A4: 支 出 项 目 | B4: 年初预算 | C4: 调整数 | D4: 调整后预算
A5: 1.城乡社区事务支出 | B5: =B6+B7+B8+B9+B10 -> 1,498,200 | C5: =D5-B5 -> 205,967 | D5: =SUM(D6:D11) -> 1,704,167
A6: 其中:国有土地使用权出让收入安排的支出 | B6: 1,363,200 | C6: =D6-B6 -> 113,467 | D6: 1,476,667
A7: 国有土地收益基金安排的支出 | B7: 91,000 | C7: =D7-B7 -> 0 | D7: 91,000
A8: 农业土地开发资金安排的支出 | B8: 6,000 | C8: 0 | D8: 6,000
A9: 城市基础设施配套费安排的支出 | B9: 20,000 | C9: 9,000 | D9: 29,000
A10: 污水处理费安排的支出 | B10: 18,000 | C10: 0 | D10: 18,000
A11: 国有土地使用权出让收入对应专项债务收入安排的支出 | D11: 83,500
A12: 2.交通运输支出 | B12: 6,000 | C12: -6,000 | D12: 0
A13: 3.债务付息支出 | B13: 39,300 | C13: 0 | D13: 39,300
A14: 4.债务发行费用支出 | B14: 500 | C14: 0 | D14: 500
A15: 5.其他基金支出 | B15: 14,000 | C15: 0 | D15: 14,000
A16: 本级支出合计 | B16: =B5+B12+B13+B14+B15 -> 1,558,000 | C16: =C5+C12+C13+C14+C15 -> 199,967 | D16: =D5+D12+D13+D14+D15 -> 1,757,967
A17: 地方政府专项债务还本支出 | B17: 56,000 | D17: 56,000
A18: 调出资金 | C18: 123,800 | D18: 123,800
A19: 支出总计 | B19: =SUM(B16:B18) -> 1,614,000 | C19: =SUM(C16:C18) -> 323,767 | D19: =SUM(D16:D18) -> 1,937,767

Sheet 社保收入
A2: 2021年张家港市社会保险基金收入预算调整表
D3: 单位：万元
A4: 收入项目 | B4: 年初预算 | C4: 调整数 | D4: 调整后预算
A5: 1、企业职工基本养老保险基金收入 | B5: 602,411 | C5: =D5-B5 -> 55,742 | D5: 658,153
A6: 2、城乡居民基本养老保险基金收入 | B6: 34,131 | C6: =D6-B6 -> 1,051 | D6: 35,182
A7: 3、机关事业单位基本养老保险基金收入 | B7: 355,161 | C7: -12,447 | D7: 342,714
A8: 4、职工基本医疗保险基金（含生育保险基金）收入 | B8: 254,300 | C8: 23,565 | D8: 277,865
A9: 5、城乡居民基本医疗保险基金收入 | B9: 59,182 | C9: 5,526 | D9: 64,708
A10: 6、工伤保险基金收入 | B10: 24,933 | C10: -1,971 | D10: 22,962
A11: 7、失业保险基金收入 | B11: 26,217 | C11: 3,094 | D11: 29,311
A12: 收入合计 | B12: =SUM(B5:B11) -> 1,356,335 | C12: =SUM(C5:C11) -> 74,560 | D12: =SUM(D5:D11) -> 1,430,895

Sheet 社保支出
A2: 2021年张家港市社会保险基金支出预算调整表
D3: 单位：万元
A4: 收入项目 | B4: 年初预算 | C4: 调整数 | D4: 调整后预算
A5: 1、企业职工基本养老保险基金收入 | B5: 729,189 | C5: =D5-B5 -> 4,791 | D5: 733,980
A6: 2、城乡居民基本养老保险基金收入 | B6: 32,142 | C6: =D6-B6 -> 697 | D6: 32,839
A7: 3、机关事业单位基本养老保险基金收入 | B7: 355,159 | C7: 36 | D7: 355,195
A8: 4、职工基本医疗保险基金（含生育保险基金）收入 | B8: 275,411 | C8: 34,530 | D8: 309,941
A9: 5、城乡居民基本医疗保险基金收入 | B9: 56,656 | C9: 8,042 | D9: 64,698
A10: 6、工伤保险基金收入 | B10: 27,976 | C10: -1,573 | D10: 26,403
A11: 7、失业保险基金收入 | B11: 22,850 | C11: -18 | D11: 22,832
A12: 收入合计 | B12: =SUM(B5:B11) -> 1,499,383 | C12: =SUM(C5:C11) -> 46,505 | D12: =SUM(D5:D11) -> 1,545,888
